fUSD/lending_fUSD_20240826
["ID","MTS","AMOUNT","RATE_DAILY","PERIOD"]
[336072733,1724689857523,-618.32,0.00010958,2]
[336072735,1724689857532,-500.0,0.00010958,2]
[336072737,1724689857542,-500.0,0.00010958,2]
[336072739,1724689857551,-500.0,0.00010958,2]
[336072740,1724689857560,-500.0,0.00010958,2]
[336072742,1724689857569,-500.0,0.00010958,2]
[336072744,1724689857578,-500.0,0.00010958,2]
[336072746,1724689857587,-1223.84,0.00010958,2]
[336072748,1724689857597,-582.69281131,0.00010958,2]
[336072757,1724689857672,-641.14718869,0.00010958,2]
[336072759,1724689857681,-536.98,0.00010958,2]
[336072761,1724689857690,-1223.84,0.00010958,2]
[336072763,1724689857700,-1014.98,0.00010958,2]
[336072765,1724689857709,-500.0,0.00010958,2]
[336072767,1724689857719,-1014.98,0.00010958,2]
[336072769,1724689857728,-500.0,0.00010958,2]
[336072771,1724689857738,-1014.98,0.00010958,2]
[336072773,1724689857747,-500.0,0.00010958,2]
[336072775,1724689857756,-500.0,0.00010958,2]
[336072776,1724689857765,-500.0,0.00010958,2]
[336072778,1724689857774,-500.0,0.00010958,2]
[336072780,1724689857783,-500.0,0.00010958,2]
[336072782,1724689857792,-500.0,0.00010958,2]
[336072784,1724689857802,-959.59,0.00010958,2]
[336072786,1724689857811,-638.36,0.00010958,2]
[336072788,1724689857820,-638.36,0.00010958,2]
[336072790,1724689857829,-500.0,0.00010958,2]
[336072792,1724689857839,-638.36,0.00010958,2]
[336072794,1724689857848,-1133.47,0.00010958,2]
[336072796,1724689857857,-1133.47,0.00010958,2]
[336072798,1724689857866,-1133.47,0.00010958,2]
[336072800,1724689857875,-500.0,0.00010958,2]
[336072802,1724689857884,-793.51,0.00010958,2]
[336072804,1724689857893,-500.0,0.00010958,2]
[336072806,1724689857903,-500.0,0.00010958,2]
[336072808,1724689857913,-793.51,0.00010958,2]
[336072810,1724689857924,-1039.77,0.00010958,2]
[336072812,1724689857934,-500.0,0.00010958,2]
[336072814,1724689857943,-1187.38,0.00010958,2]
[336072816,1724689857952,-1039.77,0.00010958,2]
[336072818,1724689857963,-793.51,0.00010958,2]
[336072820,1724689857972,-1187.38,0.00010958,2]
[336072822,1724689857981,-500.0,0.00010958,2]
[336072824,1724689857990,-500.0,0.00010958,2]
[336072825,1724689858000,-1187.38,0.00010958,2]
[336072826,1724689858009,-500.0,0.00010958,2]
[336072827,1724689858020,-500.0,0.00010958,2]
[336072828,1724689858029,-500.0,0.00010958,2]
[336072829,1724689858040,-500.0,0.00010958,2]
[336072830,1724689858054,-500.0,0.00010958,2]
[336072831,1724689858063,-500.0,0.00010958,2]
[336072832,1724689858074,-500.0,0.00010958,2]
[336072833,1724689858084,-500.0,0.00010958,2]
[336072834,1724689858093,-1032.54,0.00010958,2]
[336072835,1724689858102,-1032.54,0.00010958,2]
[336072836,1724689858111,-1032.54,0.00010958,2]
[336072837,1724689858122,-500.0,0.00010958,2]
[336072838,1724689858133,-975.7,0.00010958,2]
[336072839,1724689858142,-500.0,0.00010958,2]
[336072841,1724689858151,-873.5,0.00010958,2]
[336072842,1724689858160,-873.5,0.00010958,2]
[336072844,1724689858170,-873.5,0.00010958,2]
[336072846,1724689858179,-500.0,0.00010958,2]
[336072848,1724689858188,-500.0,0.00010958,2]
[336072850,1724689858197,-1466.74,0.00010958,2]
[336072852,1724689858208,-500.0,0.00010958,2]
[336072854,1724689858217,-1466.74,0.00010958,2]
[336072856,1724689858226,-500.0,0.00010958,2]
[336072858,1724689858235,-500.0,0.00010958,2]
[336072860,1724689858244,-500.0,0.00010958,2]
[336072861,1724689858253,-500.0,0.00010958,2]
[336072862,1724689858262,-500.0,0.00010958,2]
[336072863,1724689858271,-1588.97,0.00010958,2]
[336072864,1724689858281,-500.0,0.00010958,2]
[336072866,1724689858290,-4971.01,0.00010958,2]
[336072868,1724689858298,-500.0,0.00010958,2]
[336072870,1724689858308,-500.0,0.00010958,2]
[336072871,1724689858317,-4971.01,0.00010958,2]
[336072872,1724689858326,-500.0,0.00010958,2]
[336072873,1724689858337,-4971.01,0.00010958,2]
[336072874,1724689858346,-500.0,0.00010958,2]
[336072875,1724689858355,-4971.01,0.00010958,2]
[336072876,1724689858364,-500.0,0.00010958,2]
[336072877,1724689858373,-4971.01,0.00010958,2]
[336072878,1724689858382,-1955.71,0.00010958,2]
[336072879,1724689858391,-500.0,0.00010958,2]
[336072880,1724689858400,-1955.71,0.00010958,2]
[336072881,1724689858409,-500.0,0.00010958,2]
[336072882,1724689858418,-1955.71,0.00010958,2]
[336072883,1724689858428,-500.0,0.00010958,2]
[336072884,1724689858437,-500.0,0.00010958,2]
[336072885,1724689858446,-806.38,0.00010958,2]
[336072886,1724689858455,-1429.3,0.00010958,2]
[336072887,1724689858475,-500.0,0.00010958,2]
[336072888,1724689858484,-1429.3,0.00010958,2]
[336072889,1724689858493,-1429.3,0.00010958,2]
[336072890,1724689858503,-500.0,0.00010958,2]
[336072891,1724689858512,-500.0,0.00010958,2]
[336072892,1724689858521,-500.0,0.00010958,2]
[336072893,1724689858530,-500.0,0.00010958,2]
[336072894,1724689858539,-598.74,0.00010958,2]
[336072895,1724689858549,-865.34,0.00010958,2]
[336072896,1724689858558,-598.74,0.00010958,2]
[336072897,1724689858567,-598.74,0.00010958,2]
[336072898,1724689858576,-598.74,0.00010958,2]
[336072899,1724689858585,-598.74,0.00010958,2]
[336072900,1724689858594,-1796.35,0.00010958,2]
[336072901,1724689858604,-1796.35,0.00010958,2]
[336072902,1724689858613,-1796.35,0.00010958,2]
[336072903,1724689858622,-743.26,0.00010958,2]
[336072904,1724689858632,-743.26,0.00010958,2]
[336072905,1724689858641,-743.26,0.00010958,2]
[336072906,1724689858650,-743.26,0.00010958,2]
[336072907,1724689858660,-500.0,0.00010958,2]
[336072908,1724689858669,-500.0,0.00010958,2]
[336072909,1724689858678,-500.0,0.00010958,2]
[336072910,1724689858687,-500.0,0.00010958,2]
[336072911,1724689858696,-2125.33,0.00010958,2]
[336072912,1724689858711,-2125.33,0.00010958,2]
[336072913,1724689858720,-2125.33,0.00010958,2]
[336072914,1724689858729,-500.0,0.00010958,2]
[336072915,1724689858738,-500.0,0.00010958,2]
[336072916,1724689858747,-500.0,0.00010958,2]
[336072918,1724689858757,-500.0,0.00010958,2]
[336072920,1724689858766,-500.0,0.00010958,2]
[336072922,1724689858775,-741.42,0.00010958,2]
[336072924,1724689858784,-741.42,0.00010958,2]
[336072926,1724689858793,-856.92,0.00010958,2]
[336072928,1724689858804,-741.42,0.00010958,2]
[336072930,1724689858814,-500.0,0.00010958,2]
[336072932,1724689858823,-2110.25,0.00010958,2]
[336072934,1724689858832,-500.0,0.00010958,2]
[336072936,1724689858841,-2110.25,0.00010958,2]
[336072938,1724689858850,-500.0,0.00010958,2]
[336072939,1724689858859,-500.0,0.00010958,2]
[336072940,1724689858868,-500.0,0.00010958,2]
[336072941,1724689858877,-2110.25,0.00010958,2]
[336072942,1724689858888,-500.0,0.00010958,2]
[336072943,1724689858897,-500.0,0.00010958,2]
[336072944,1724689858907,-500.0,0.00010958,2]
[336072945,1724689858917,-500.0,0.00010958,2]
[336072946,1724689858926,-500.0,0.00010958,2]
[336072947,1724689858936,-500.0,0.00010958,2]
[336072948,1724689858945,-500.0,0.00010958,2]
[336072949,1724689858955,-500.0,0.00010958,2]
[336072950,1724689858963,-500.0,0.00010958,2]
[336072951,1724689858972,-500.0,0.00010958,2]
[336072952,1724689858981,-500.0,0.00010958,2]
[336072953,1724689858990,-535.46,0.00010958,2]
[336072954,1724689859000,-535.46,0.00010958,2]
[336072955,1724689859009,-535.46,0.00010958,2]
[336072956,1724689859018,-535.46,0.00010958,2]
[336072957,1724689859027,-500.0,0.00010958,2]
[336072958,1724689859036,-3132.92,0.00010958,2]
[336072959,1724689859051,-535.46,0.00010958,2]
[336072960,1724689859060,-3132.92,0.00010958,2]
[336072961,1724689859069,-1090.85,0.00010958,2]
[336072962,1724689859079,-535.46,0.00010958,2]
[336072963,1724689859092,-3132.92,0.00010958,2]
[336072964,1724689859102,-500.0,0.00010958,2]
[336072965,1724689859111,-535.46,0.00010958,2]
[336072966,1724689859121,-500.0,0.00010958,2]
[336072967,1724689859131,-3132.92,0.00010958,2]
[336072968,1724689859141,-500.0,0.00010958,2]
[336072969,1724689859150,-500.0,0.00010958,2]
[336072970,1724689859159,-3132.92,0.00010958,2]
[336072971,1724689859169,-500.0,0.00010958,2]
[336072972,1724689859178,-1900.71,0.00010958,2]
[336072973,1724689859189,-3132.92,0.00010958,2]
[336072974,1724689859199,-500.0,0.00010958,2]
[336072975,1724689859208,-1900.71,0.00010958,2]
[336072976,1724689859218,-3132.92,0.00010958,2]
[336072977,1724689859226,-1900.71,0.00010958,2]
[336072978,1724689859237,-1470.92,0.00010958,2]
[336072979,1724689859247,-1470.92,0.00010958,2]
[336072980,1724689859257,-1470.92,0.00010958,2]
[336072981,1724689859269,-1470.92,0.00010958,2]
[336072982,1724689859279,-500.0,0.00010958,2]
[336072983,1724689859289,-500.0,0.00010958,2]
[336072984,1724689859299,-500.0,0.00010958,2]
[336072985,1724689859310,-500.0,0.00010958,2]
[336072986,1724689859319,-500.0,0.00010958,2]
[336072987,1724689859329,-911.18,0.00010958,2]
[336072988,1724689859337,-500.0,0.00010958,2]
[336072989,1724689859347,-500.0,0.00010958,2]
[336072990,1724689859356,-252.7716323,0.00010958,2]
[336072991,1724689859371,-636.49603942,0.00010958,2]
[336072992,1724689859382,-21.91232828,0.00010958,2]
[336072993,1724689859392,-500.0,0.00010958,2]
[336072994,1724689859579,-760.54246149,0.00010958,2]
[336072995,1724689860167,-150.63753851,0.00010958,2]
[336072996,1724689860177,-469.12266462,0.00010958,2]
[336072997,1724689860194,-30.87733538,0.00010958,2]
[336072998,1724689860205,-341.97013338,0.00010958,2]
[336072999,1724689860216,-500.0,0.00010958,2]
[336073000,1724689860226,-855.73306081,0.00010958,2]
[336073003,1724689998220,154.57,9.972e-05,2]
[336073004,1724690187919,151.32,9.973e-05,2]
[336073009,1724690232906,1000.0,9.967e-05,2]
[336073010,1724690314388,269.08,8.219e-05,2]
[336073021,1724690428923,250.0,9.968e-05,2]
[336073022,1724690526623,195.26,9.962e-05,2]
[336073024,1724690692756,166.73,9.965e-05,2]
[336073026,1724690799909,255.62,8.219e-05,2]
[336073033,1724690931287,707.49168125,9.962e-05,2]
[336073043,1724690935730,-255.62,0.00010474,2]
[336073044,1724690935753,-329.99434207,0.00010505,2]
[336073045,1724690935776,-300.0,0.00010676,2]
[336073046,1724690935798,-300.0,0.00010676,2]
[336073047,1724690935820,-150.0,0.00010676,2]
[336073048,1724690935842,-25645.38565793,0.00010677,2]
[336073049,1724690937951,155.0,9.962e-05,2]
[336073050,1724690939853,-297.57530605,0.00010566,2]
[336073051,1724690939875,-4949.26704207,0.00010677,2]
[336073052,1724690939896,-7593.7249,0.00010677,2]
[336073053,1724690939917,-155.0,0.00010713,2]
[336073054,1724690939939,-155.0,0.00010713,2]
[336073055,1724690939959,-150.0,0.00010822,2]
[336073056,1724690939982,-3000.0,0.0001085,2]
[336073057,1724690940006,-2899.2712,0.00010858,2]
[336073058,1724690940028,-5992.2514,0.00010858,2]
[336073059,1724690940050,-1258.20462876,0.00010861,2]
[336073060,1724690940076,-326.28228056,0.00010867,2]
[336073061,1724690940098,-326.28228055,0.00010884,2]
[336073062,1724690940120,-326.28228055,0.000109,2]
[336073063,1724690940142,-150.26,0.00010952,2]
[336073064,1724690940164,-1994.54463624,0.00010955,2]
[336073065,1724690940187,-426.05404522,0.00010958,2]
[336073066,1724690940448,-222.94595478,0.00010958,2]
[336073067,1724690940473,-151.0,0.00010958,2]
[336073068,1724690940494,-152.169199,0.00010958,2]
[336073069,1724690940517,-151.0,0.00010958,2]
[336073070,1724690940538,-151.0,0.00010958,2]
[336073071,1724690940561,-152.109712,0.00010958,2]
[336073072,1724690940582,-151.0,0.00010958,2]
[336073073,1724690940603,-151.0,0.00010958,2]
[336073074,1724690940624,-151.0,0.00010958,2]
[336073075,1724690940645,-151.0,0.00010958,2]
[336073076,1724690940667,-151.0,0.00010958,2]
[336073077,1724690940687,-151.0,0.00010958,2]
[336073078,1724690940708,-151.0,0.00010958,2]
[336073079,1724690940730,-151.0,0.00010958,2]
[336073080,1724690940753,-151.0,0.00010958,2]
[336073081,1724690940774,-268.0,0.00010958,2]
[336073082,1724690940795,-177.13,0.00010958,2]
[336073083,1724690940817,-176.565202,0.00010958,2]
[336073084,1724690940838,-500.0,0.00010958,2]
[336073085,1724690940861,-500.0,0.00010958,2]
[336073086,1724690940883,-558.36531822,0.00010958,2]
[336073087,1724690940905,-232.24,0.00010958,2]
[336073088,1724690940926,-500.0,0.00010958,2]
[336073089,1724690940948,-500.0,0.00010958,2]
[336073090,1724690940969,-500.0,0.00010958,2]
[336073091,1724690940990,-500.0,0.00010958,2]
[336073092,1724690941017,-500.0,0.00010958,2]
[336073093,1724690941045,-151.0,0.00010958,2]
[336073094,1724690941067,-500.0,0.00010958,2]
[336073095,1724690941089,-500.0,0.00010958,2]
[336073096,1724690941111,-500.0,0.00010958,2]
[336073097,1724690941133,-500.0,0.00010958,2]
[336073098,1724690941155,-500.0,0.00010958,2]
[336073099,1724690941177,-500.0,0.00010958,2]
[336073100,1724690941200,-500.0,0.00010958,2]
[336073101,1724690941222,-500.0,0.00010958,2]
[336073102,1724690941244,-2000.0,0.00010958,2]
[336073103,1724690941266,-200.0,0.00010958,2]
[336073104,1724690941288,-1129.81,0.00010958,2]
[336073105,1724690941309,-500.0,0.00010958,2]
[336073106,1724690941330,-500.0,0.00010958,2]
[336073107,1724690941352,-500.0,0.00010958,2]
[336073108,1724690941376,-500.0,0.00010958,2]
[336073109,1724690941399,-500.0,0.00010958,2]
[336073110,1724690941421,-500.0,0.00010958,2]
[336073111,1724690941443,-500.0,0.00010958,2]
[336073112,1724690941468,-500.0,0.00010958,2]
[336073113,1724690941490,-500.0,0.00010958,2]
[336073114,1724690941512,-500.0,0.00010958,2]
[336073115,1724690941534,-500.0,0.00010958,2]
[336073116,1724690941556,-500.0,0.00010958,2]
[336073117,1724690941578,-424.06,0.00010958,2]
[336073118,1724690941600,-500.0,0.00010958,2]
[336073119,1724690941622,-500.0,0.00010958,2]
[336073120,1724690941644,-500.0,0.00010958,2]
[336073121,1724690941667,-500.0,0.00010958,2]
[336073122,1724690941689,-500.0,0.00010958,2]
[336073123,1724690941711,-500.0,0.00010958,2]
[336073124,1724690941734,-526.03,0.00010958,2]
[336073125,1724690941756,-500.0,0.00010958,2]
[336073126,1724690941779,-500.0,0.00010958,2]
[336073127,1724690941802,-500.0,0.00010958,2]
[336073128,1724690941824,-500.0,0.00010958,2]
[336073129,1724690941847,-500.0,0.00010958,2]
[336073130,1724690941870,-500.0,0.00010958,2]
[336073131,1724690941892,-500.0,0.00010958,2]
[336073132,1724690941915,-588.34831733,0.00010958,2]
[336073133,1724690941938,-419.6,0.00010958,2]
[336073134,1724690941962,-500.0,0.00010958,2]
[336073135,1724690941990,-309.62629667,0.00010958,2]
[336073177,1724690966701,200.0,9.973e-05,2]
[336073178,1724690978685,1000.0,9.973e-05,2]
[336073182,1724691032031,-177.26446989,0.00010675,2]
[336073183,1724691032041,-1500.0,0.00010726,2]
[336073184,1724691032050,-1500.0,0.00010775,2]
[336073185,1724691032060,-300.0,0.00010957,2]
[336073186,1724691032069,-300.0,0.00010957,2]
[336073187,1724691032078,-583.0,0.00010958,2]
[336073188,1724691032087,-238.63370333,0.00010958,2]
[336073189,1724691032097,-490.57262322,0.00010958,5]
[336073190,1724691032107,-500.0,0.00010958,2]
[336073191,1724691032116,-500.0,0.00010958,2]
[336073192,1724691032125,-500.0,0.00010958,2]
[336073193,1724691032134,-500.0,0.00010958,2]
[336073194,1724691032143,-462.66077037,0.00010958,2]
[336073195,1724691032180,-37.33922963,0.00010958,2]
[336073196,1724691032190,-500.0,0.00010958,2]
[336073197,1724691032199,-340.96267714,0.00010958,2]
[336073198,1724691032210,-159.03732286,0.00010958,2]
[336073199,1724691032219,-500.0,0.00010958,2]
[336073200,1724691032229,-141.40597921,0.00010958,2]
[336073201,1724691032265,-346.14575819,0.00010958,2]
[336073202,1724691032275,-375.87943792,0.00010958,2]
[336073203,1724691032299,-124.12056208,0.00010958,2]
[336073204,1724691032308,-500.0,0.00010958,2]
[336073205,1724691032317,-500.0,0.00010958,2]
[336073206,1724691032326,-500.0,0.00010958,2]
[336073207,1724691032335,-500.0,0.00010958,2]
[336073208,1724691032344,-500.0,0.00010958,2]
[336073209,1724691032354,-500.0,0.00010958,2]
[336073210,1724691032364,-48.26612178,0.00010958,2]
[336073211,1724691032376,-1165.64387822,0.00010958,2]
[336073212,1724691032385,-500.0,0.00010958,2]
[336073213,1724691032394,-500.0,0.00010958,2]
[336073214,1724691032406,-500.0,0.00010958,2]
[336073215,1724691032418,-500.0,0.00010958,2]
[336073216,1724691032428,-500.0,0.00010958,2]
[336073217,1724691032437,-500.0,0.00010958,2]
[336073218,1724691032448,-500.0,0.00010958,2]
[336073219,1724691032459,-500.0,0.00010958,2]
[336073220,1724691032468,-500.0,0.00010958,2]
[336073221,1724691032477,-500.0,0.00010958,2]
[336073222,1724691032489,-500.0,0.00010958,2]
[336073223,1724691032498,-500.0,0.00010958,2]
[336073224,1724691032507,-151.0,0.00010958,2]
[336073225,1724691032517,-151.0,0.00010958,2]
[336073226,1724691032526,-500.0,0.00010958,2]
[336073227,1724691032535,-500.0,0.00010958,2]
[336073229,1724691032544,-500.0,0.00010958,2]
[336073231,1724691032554,-500.0,0.00010958,2]
[336073233,1724691032563,-500.0,0.00010958,2]
[336073235,1724691032572,-385.43458419,0.00010958,2]
[336073238,1724691032586,-114.56541581,0.00010958,2]
[336073240,1724691032595,-151.0,0.00010958,2]
[336073242,1724691032605,-184.8839446,0.00010958,2]
[336073244,1724691032616,-380.1260554,0.00010958,2]
[336073246,1724691032625,-500.0,0.00010958,2]
[336073248,1724691032634,-500.0,0.00010958,2]
[336073250,1724691032643,-500.0,0.00010958,2]
[336073252,1724691032652,-151.0,0.00010958,2]
[336073254,1724691032662,-500.0,0.00010958,2]
[336073256,1724691032671,-500.0,0.00010958,2]
[336073258,1724691032680,-151.0,0.00010958,2]
[336073260,1724691032689,-500.0,0.00010958,2]
[336073262,1724691032698,-500.0,0.00010958,2]
[336073263,1724691032707,-500.0,0.00010958,2]
[336073264,1724691032716,-500.0,0.00010958,2]
[336073266,1724691032725,-500.0,0.00010958,2]
[336073268,1724691032734,-500.0,0.00010958,2]
[336073270,1724691032743,-310.25890444,0.00010958,2]
[336073272,1724691032757,-189.74109556,0.00010958,2]
[336073274,1724691032766,-500.0,0.00010958,2]
[336073275,1724691032775,-558.77,0.00010958,2]
[336073276,1724691032784,-151.0,0.00010958,2]
[336073277,1724691032794,-151.0,0.00010958,2]
[336073278,1724691032803,-151.0,0.00010958,2]
[336073279,1724691032812,-1440.29,0.00010958,2]
[336073280,1724691032821,-1440.29,0.00010958,2]
[336073281,1724691032831,-1440.29,0.00010958,2]
[336073282,1724691032842,-1440.29,0.00010958,2]
[336073283,1724691032852,-1440.29,0.00010958,2]
[336073284,1724691032862,-1440.29,0.00010958,2]
[336073285,1724691032871,-500.0,0.00010958,2]
[336073286,1724691032880,-500.0,0.00010958,2]
[336073287,1724691032889,-772.94,0.00010958,2]
[336073288,1724691032899,-500.0,0.00010958,2]
[336073289,1724691032909,-500.0,0.00010958,2]
[336073290,1724691032921,-500.0,0.00010958,2]
[336073291,1724691032931,-500.0,0.00010958,2]
[336073292,1724691032942,-500.0,0.00010958,2]
[336073293,1724691032953,-500.0,0.00010958,2]
[336073294,1724691032962,-856.67,0.00010958,2]
[336073295,1724691032973,-856.67,0.00010958,2]
[336073296,1724691032985,-856.67,0.00010958,2]
[336073297,1724691032995,-856.67,0.00010958,2]
[336073298,1724691033005,-856.67,0.00010958,2]
[336073299,1724691033014,-856.67,0.00010958,2]
[336073300,1724691033023,-500.0,0.00010958,2]
[336073301,1724691033032,-500.0,0.00010958,2]
[336073302,1724691033042,-500.0,0.00010958,2]
[336073303,1724691033052,-500.0,0.00010958,2]
[336073304,1724691033061,-303.46,0.00010958,2]
[336073305,1724691033072,-500.0,0.00010958,2]
[336073306,1724691033081,-500.0,0.00010958,2]
[336073307,1724691033091,-500.0,0.00010958,2]
[336073308,1724691033100,-500.0,0.00010958,2]
[336073309,1724691033111,-500.0,0.00010958,2]
[336073310,1724691033120,-500.0,0.00010958,2]
[336073311,1724691033129,-500.0,0.00010958,2]
[336073312,1724691033139,-500.0,0.00010958,2]
[336073313,1724691033148,-500.0,0.00010958,2]
[336073314,1724691033158,-500.0,0.00010958,2]
[336073315,1724691033168,-500.0,0.00010958,2]
[336073316,1724691033177,-500.0,0.00010958,2]
[336073317,1724691033187,-500.0,0.00010958,2]
[336073318,1724691033196,-500.0,0.00010958,2]
[336073319,1724691033206,-500.0,0.00010958,2]
[336073320,1724691033215,-500.0,0.00010958,2]
[336073321,1724691033225,-500.0,0.00010958,2]
[336073322,1724691033234,-500.0,0.00010958,2]
[336073323,1724691033243,-500.0,0.00010958,2]
[336073324,1724691033253,-500.0,0.00010958,2]
[336073325,1724691033262,-500.0,0.00010958,2]
[336073326,1724691033272,-500.0,0.00010958,2]
[336073327,1724691033281,-500.0,0.00010958,2]
[336073328,1724691033290,-500.0,0.00010958,2]
[336073329,1724691033300,-500.0,0.00010958,2]
[336073330,1724691033309,-500.0,0.00010958,2]
[336073331,1724691033319,-500.0,0.00010958,2]
[336073332,1724691033328,-500.0,0.00010958,2]
[336073333,1724691033338,-500.0,0.00010958,2]
[336073334,1724691033347,-500.0,0.00010958,2]
[336073335,1724691033356,-500.0,0.00010958,2]
[336073336,1724691033365,-500.0,0.00010958,2]
[336073337,1724691033375,-500.0,0.00010958,2]
[336073338,1724691033384,-500.0,0.00010958,2]
[336073339,1724691033393,-500.0,0.00010958,2]
[336073340,1724691033404,-500.0,0.00010958,2]
[336073341,1724691033414,-360.73198059,0.00010958,2]
[336073342,1724691033423,-1205.34,0.00010958,2]
[336073343,1724691033433,-151.897856,0.00010958,2]
[336073344,1724691033443,-151.0,0.00010958,2]
[336073345,1724691033452,-500.0,0.00010958,2]
[336073346,1724691033461,-294.12737599,0.00010958,2]
[336073347,1724691033470,-151.0,0.00010958,2]
[336073348,1724691033480,-157.007799,0.00010958,2]
[336073349,1724691033491,-953.22,0.00010958,2]
[336073350,1724691033501,-953.22,0.00010958,2]
[336073351,1724691033510,-953.22,0.00010958,2]
[336073352,1724691033519,-953.22,0.00010958,2]
[336073353,1724691033529,-953.22,0.00010958,2]
[336073354,1724691033538,-809.77359032,0.00010958,2]
[336073355,1724691033564,-143.44640968,0.00010958,2]
[336073356,1724691033574,-953.22,0.00010958,2]
[336073357,1724691033583,-344.62643239,0.00010958,2]
[336073358,1724691033612,-155.37356761,0.00010958,2]
[336073359,1724691033622,-335.09009542,0.00010958,2]
[336073360,1724691033634,-164.90990458,0.00010958,2]
[336073361,1724691033644,-500.0,0.00010958,2]
[336073362,1724691033653,-32.98045605,0.00010958,2]
[336073363,1724691033665,-467.01954395,0.00010958,2]
[336073364,1724691033674,-130.32273512,0.00010958,2]
[336073365,1724691034580,-369.67726488,0.00010958,2]
[336073366,1724691034590,-536.75412249,0.00010958,2]
[336073367,1724691034599,-500.0,0.00010958,2]
[336073368,1724691034611,-500.0,0.00010958,2]
[336073369,1724691034621,-500.0,0.00010958,2]
[336073370,1724691034631,-500.0,0.00010958,2]
[336073371,1724691034640,-500.0,0.00010958,2]
[336073372,1724691034650,-500.0,0.00010958,2]
[336073373,1724691034659,-500.0,0.00010958,2]
[336073374,1724691034668,-500.0,0.00010958,2]
[336073375,1724691034678,-1769.52,0.00010958,2]
[336073376,1724691034688,-13.81488082,0.00010958,2]
[336073377,1724691035261,-486.18511918,0.00010958,2]
[336073378,1724691035271,-500.0,0.00010958,2]
[336073379,1724691035280,-500.0,0.00010958,2]
[336073380,1724691035289,-519.25937531,0.00010958,2]
[336073381,1724691035299,-553.62342551,0.00010958,2]
[336073382,1724691035311,-1086.78657449,0.00010958,2]
[336073383,1724691035320,-500.0,0.00010958,2]
[336073384,1724691035333,-500.0,0.00010958,2]
[336073385,1724691035347,-531.39951142,0.00010958,2]
[336073386,1724691035359,-500.0,0.00010958,2]
[336073387,1724691035369,-681.81391409,0.00010958,2]
[336073388,1724691035382,-670.60608591,0.00010958,2]
[336073389,1724691035392,-210.81507218,0.00010958,2]
[336073391,1724691038064,-534.4333347,0.00010955,2]
[336073392,1724691038119,-483.7355491,0.00010955,2]
[336073393,1724691038131,-533.14361104,0.00010955,2]
[336073394,1724691038142,-289.18492782,0.00010958,2]
[336073395,1724691038152,-500.0,0.00010958,2]
[336073396,1724691038163,-500.0,0.00010958,2]
[336073397,1724691038174,-500.0,0.00010958,2]
[336073398,1724691038184,-500.0,0.00010958,2]
[336073399,1724691038193,-500.0,0.00010958,2]
[336073400,1724691038203,-500.0,0.00010958,2]
[336073401,1724691038212,-500.0,0.00010958,2]
[336073402,1724691038221,-500.0,0.00010958,2]
[336073403,1724691038231,-774.08,0.00010958,2]
[336073404,1724691038242,-500.0,0.00010958,2]
[336073405,1724691038251,-500.0,0.00010958,2]